[Event "November 21 Late 2023"]
[Site "https://www.chess.com"]
[Date "2023.11.21"]
[Round "6"]
[White "Wagner, Dennis"]
[Black "Estrategia_vs_Tactica"]
[Result "1/2-1/2"]
[Board "36"]
[TimeControl "180+1"]
[WhiteFideId "24650684"]
[WhiteElo "2482"]
[BlackElo "2349"]
[WhiteTeam "GER"]
[WhiteClock "0:00:07"]
[BlackClock "0:00:20"]

1. d4 {[%clk 0:03:00]}  Nf6 {[%clk 0:02:58]} 2. c4 {[%clk 0:03:01]}  c5 {[%clk 0:02:58]} 3. e3 {[%clk 0:02:53]}  cxd4 {[%clk 0:02:58]} 4. exd4 {[%clk 0:02:54]}  g6 {[%clk 0:02:58]} 5. Nc3 {[%clk 0:02:50]}  Bg7 {[%clk 0:02:58]} 6. d5 {[%clk 0:02:46]}  O-O {[%clk 0:02:58]} 7. Nf3 {[%clk 0:02:45]}  e6 {[%clk 0:02:58]} 8. Be2 {[%clk 0:02:44]}  exd5 {[%clk 0:02:53]} 9. cxd5 {[%clk 0:02:45]}  d6 {[%clk 0:02:47]} 10. O-O {[%clk 0:02:46]}  Na6 {[%clk 0:02:47]} 11. Bf4 {[%clk 0:02:44]}  Nc5 {[%clk 0:02:45]} 12. Re1 {[%clk 0:02:35]}  Re8 {[%clk 0:02:43]} 13. Rc1 {[%clk 0:02:31]}  Bf5 {[%clk 0:02:32]} 14. Nd4 {[%clk 0:02:29]}  Bc8 {[%clk 0:02:19]} 15. Ndb5 {[%clk 0:02:16]}  Bf8 {[%clk 0:02:17]} 16. b4 {[%clk 0:02:08]}  Nce4 {[%clk 0:02:15]} 17. Bf3 {[%clk 0:01:14]}  Nxc3 {[%clk 0:02:12]} 18. Rxc3 {[%clk 0:01:15]}  Rxe1+ {[%clk 0:02:10]} 19. Qxe1 {[%clk 0:01:16]}  Bf5 {[%clk 0:02:04]} 20. h3 {[%clk 0:01:00]}  a6 {[%clk 0:02:02]} 21. Nd4 {[%clk 0:00:58]}  Bd7 {[%clk 0:02:02]} 22. Qc1 {[%clk 0:00:53]}  Rc8 {[%clk 0:01:50]} 23. g4 {[%clk 0:00:52]}  Rxc3 {[%clk 0:01:47]} 24. Qxc3 {[%clk 0:00:53]}  Qc8 {[%clk 0:01:38]} 25. Qxc8 {[%clk 0:00:50]}  Bxc8 {[%clk 0:01:39]} 26. b5 {[%clk 0:00:37]}  axb5 {[%clk 0:01:34]} 27. Nxb5 {[%clk 0:00:38]}  Ne8 {[%clk 0:01:34]} 28. Kf1 {[%clk 0:00:23]}  f6 {[%clk 0:01:30]} 29. Ke2 {[%clk 0:00:22]}  Kf7 {[%clk 0:01:29]} 30. Kd3 {[%clk 0:00:22]}  Bd7 {[%clk 0:01:25]} 31. Kc4 {[%clk 0:00:22]}  Be7 {[%clk 0:01:21]} 32. Kb4 {[%clk 0:00:22]}  g5 {[%clk 0:01:05]} 33. Be3 {[%clk 0:00:20]}  f5 {[%clk 0:01:02]} 34. Bb6 {[%clk 0:00:18]}  fxg4 {[%clk 0:01:00]} 35. Bxg4 {[%clk 0:00:16]}  Bxg4 {[%clk 0:00:58]} 36. hxg4 {[%clk 0:00:17]}  Nf6 {[%clk 0:00:59]} 37. Kc4 {[%clk 0:00:15]}  Nxg4 {[%clk 0:00:59]} 38. a4 {[%clk 0:00:11]}  h5 {[%clk 0:00:54]} 39. Kd3 {[%clk 0:00:07]}  h4 {[%clk 0:00:54]} 40. Ke2 {[%clk 0:00:07]}  Ne5 {[%clk 0:00:47]} 41. Bd4 {[%clk 0:00:06]}  Nc4 {[%clk 0:00:40]} 42. Kf3 {[%clk 0:00:05]}  Kg6 {[%clk 0:00:37]} 43. Kg4 {[%clk 0:00:05]}  Nd2 {[%clk 0:00:27]} 44. f4 {[%clk 0:00:05]}  gxf4 {[%clk 0:00:26]} 45. Kxf4 {[%clk 0:00:06]}  Nb3 {[%clk 0:00:24]} 46. Bf2 {[%clk 0:00:04]}  Nc5 {[%clk 0:00:18]} 47. Kg4 {[%clk 0:00:04]}  Nxa4 {[%clk 0:00:18]} 48. Bxh4 {[%clk 0:00:04]}  Bxh4 {[%clk 0:00:18]} 49. Kxh4 {[%clk 0:00:05]}  Kf5 {[%clk 0:00:19]} 50. Nxd6+ {[%clk 0:00:06]}  Ke5 {[%clk 0:00:19]} 51. Nxb7 {[%clk 0:00:07]}  Kxd5 {[%clk 0:00:20]} 1/2-1/2

[Event "November 21 Late 2023"]
[Site "https://www.chess.com"]
[Date "2023.11.21"]
[Round "6"]
[White "Galchenko, Matvey"]
[Black "Sanchez Alvares, Kelvin Antonio"]
[Result "1-0"]
[Board "38"]
[TimeControl "180+1"]
[WhiteFideId "24175480"]
[BlackFideId "3906680"]
[WhiteElo "2406"]
[BlackElo "2217"]
[WhiteTeam "FID"]
[BlackTeam "VEN"]
[WhiteClock "0:01:25"]
[BlackClock "0:01:11"]

1. e4 {[%clk 0:02:56]}  e5 {[%clk 0:02:59]} 2. Nf3 {[%clk 0:02:55]}  Nc6 {[%clk 0:03:00]} 3. d4 {[%clk 0:02:53]}  exd4 {[%clk 0:03:00]} 4. c3 {[%clk 0:02:54]}  Nf6 {[%clk 0:02:49]} 5. e5 {[%clk 0:02:54]}  Ne4 {[%clk 0:02:49]} 6. cxd4 {[%clk 0:02:47]}  Bb4+ {[%clk 0:02:47]} 7. Nbd2 {[%clk 0:02:47]}  d5 {[%clk 0:02:46]} 8. Bd3 {[%clk 0:02:45]}  O-O {[%clk 0:02:44]} 9. O-O {[%clk 0:02:44]}  Bxd2 {[%clk 0:02:38]} 10. Bxd2 {[%clk 0:02:45]}  Bg4 {[%clk 0:02:35]} 11. Be3 {[%clk 0:02:43]}  f6 {[%clk 0:02:30]} 12. exf6 {[%clk 0:02:21]}  Rxf6 {[%clk 0:02:25]} 13. Be2 {[%clk 0:02:21]}  Qd6 {[%clk 0:02:24]} 14. Qb3 {[%clk 0:02:06]}  b6 {[%clk 0:02:07]} 15. h3 {[%clk 0:01:56]}  Bh5 {[%clk 0:02:01]} 16. Rac1 {[%clk 0:01:39]}  Raf8 {[%clk 0:01:58]} 17. Rxc6 {[%clk 0:01:28]}  Qxc6 {[%clk 0:01:50]} 18. Ne5 {[%clk 0:01:28]}  Qe8 {[%clk 0:01:51]} 19. Qxd5+ {[%clk 0:01:28]}  Kh8 {[%clk 0:01:31]} 20. Bxh5 {[%clk 0:01:27]}  Qxh5 {[%clk 0:01:27]} 21. Qxe4 {[%clk 0:01:27]}  c5 {[%clk 0:01:11]} 22. Nd7 {[%clk 0:01:25]} 1-0

[Event "November 21 Late 2023"]
[Site "https://www.chess.com"]
[Date "2023.11.21"]
[Round "6"]
[White "Khamrakulov, Djurabek"]
[Black "Hajiyev, Kanan"]
[Result "1-0"]
[Board "40"]
[TimeControl "180+1"]
[WhiteFideId "14201143"]
[BlackFideId "13404148"]
[WhiteElo "2535"]
[BlackElo "2102"]
[WhiteTeam "UZB"]
[BlackTeam "AZE"]
[WhiteClock "0:00:17"]
[BlackClock "0:00:00"]

1. e4 {[%clk 0:03:00]}  c6 {[%clk 0:03:00]} 2. d4 {[%clk 0:02:57]}  d5 {[%clk 0:03:01]} 3. Nc3 {[%clk 0:02:57]}  a6 {[%clk 0:03:01]} 4. Nf3 {[%clk 0:02:57]}  Bg4 {[%clk 0:03:01]} 5. Bd3 {[%clk 0:02:55]}  e6 {[%clk 0:02:59]} 6. O-O {[%clk 0:02:55]}  Nf6 {[%clk 0:02:58]} 7. Re1 {[%clk 0:02:54]}  Bb4 {[%clk 0:02:58]} 8. e5 {[%clk 0:02:53]}  Nfd7 {[%clk 0:02:58]} 9. Bd2 {[%clk 0:02:51]}  O-O {[%clk 0:02:54]} 10. Nb1 {[%clk 0:02:46]}  Bxd2 {[%clk 0:02:51]} 11. Nbxd2 {[%clk 0:02:46]}  c5 {[%clk 0:02:52]} 12. c3 {[%clk 0:02:47]}  Nc6 {[%clk 0:02:51]} 13. h3 {[%clk 0:02:41]}  Bh5 {[%clk 0:02:51]} 14. Qc2 {[%clk 0:02:24]}  Bg6 {[%clk 0:02:47]} 15. Bxg6 {[%clk 0:02:24]}  hxg6 {[%clk 0:02:48]} 16. Qd3 {[%clk 0:02:23]}  cxd4 {[%clk 0:02:44]} 17. cxd4 {[%clk 0:02:23]}  Qb6 {[%clk 0:02:45]} 18. Nb3 {[%clk 0:02:20]}  Qb5 {[%clk 0:02:45]} 19. Qe3 {[%clk 0:02:18]}  Nb4 {[%clk 0:02:45]} 20. Qf4 {[%clk 0:01:39]}  Qd3 {[%clk 0:02:16]} 21. Ng5 {[%clk 0:01:35]}  Nc2 {[%clk 0:01:44]} 22. Rad1 {[%clk 0:01:29]}  Qf5 {[%clk 0:01:13]} 23. Qh4 {[%clk 0:01:28]}  Rfc8 {[%clk 0:01:13]} 24. Re2 {[%clk 0:01:20]}  Nf8 {[%clk 0:01:11]} 25. a3 {[%clk 0:01:11]}  Rc4 {[%clk 0:00:49]} 26. Na5 {[%clk 0:00:56]}  Rc7 {[%clk 0:00:49]} 27. Rdd2 {[%clk 0:00:47]}  Rac8 {[%clk 0:00:40]} 28. Qg3 {[%clk 0:00:41]}  b6 {[%clk 0:00:36]} 29. Nb3 {[%clk 0:00:40]}  Rc4 {[%clk 0:00:35]} 30. Nf3 {[%clk 0:00:34]}  a5 {[%clk 0:00:29]} 31. a4 {[%clk 0:00:29]}  Rb4 {[%clk 0:00:21]} 32. Nh4 {[%clk 0:00:29]}  Qh5 {[%clk 0:00:19]} 33. Rxc2 {[%clk 0:00:29]}  Rcc4 {[%clk 0:00:08]} 34. Rxc4 {[%clk 0:00:27]}  dxc4 {[%clk 0:00:09]} 35. Nc1 {[%clk 0:00:27]}  c3 {[%clk 0:00:06]} 36. bxc3 {[%clk 0:00:24]}  Rb1 {[%clk 0:00:07]} 37. Re1 {[%clk 0:00:24]}  Qh6 {[%clk 0:00:06]} 38. f4 {[%clk 0:00:24]}  Qh5 {[%clk 0:00:03]} 39. Kh2 {[%clk 0:00:24]}  Rb2 {[%clk 0:00:03]} 40. Nd3 {[%clk 0:00:24]}  Rb3 {[%clk 0:00:03]} 41. Nf2 {[%clk 0:00:23]}  Nh7 {[%clk 0:00:03]} 42. Ng4 {[%clk 0:00:20]}  g5 {[%clk 0:00:02]} 43. fxg5 {[%clk 0:00:18]}  Qxg5 {[%clk 0:00:03]} 44. Nf3 {[%clk 0:00:17]}  Qf5 {[%clk 0:00:00]} 45. Nh6+ {[%clk 0:00:17]} 1-0

[Event "November 21 Late 2023"]
[Site "https://www.chess.com"]
[Date "2023.11.21"]
[Round "6"]
[White "Prithu Gupta"]
[Black "Korchmar, Vasiliy"]
[Result "0-1"]
[Board "42"]
[TimeControl "180+1"]
[WhiteFideId "46618546"]
[BlackFideId "24131750"]
[WhiteElo "2344"]
[BlackElo "2372"]
[WhiteTeam "IND"]
[BlackTeam "RUS"]
[WhiteClock "0:00:00"]
[BlackClock "0:01:39"]

1. e4 {[%clk 0:03:00]}  c5 {[%clk 0:02:51]} 2. Nf3 {[%clk 0:03:00]}  d6 {[%clk 0:02:52]} 3. Bb5+ {[%clk 0:02:58]}  Bd7 {[%clk 0:02:51]} 4. c4 {[%clk 0:02:58]}  Nc6 {[%clk 0:02:50]} 5. d4 {[%clk 0:02:55]}  cxd4 {[%clk 0:02:50]} 6. Nxd4 {[%clk 0:02:56]}  g6 {[%clk 0:02:50]} 7. O-O {[%clk 0:02:53]}  Bg7 {[%clk 0:02:50]} 8. Be3 {[%clk 0:02:53]}  Nf6 {[%clk 0:02:50]} 9. Nc3 {[%clk 0:02:53]}  Ng4 {[%clk 0:02:49]} 10. Bxc6 {[%clk 0:02:26]}  bxc6 {[%clk 0:02:50]} 11. Bc1 {[%clk 0:02:24]}  Qb6 {[%clk 0:02:31]} 12. Nb3 {[%clk 0:02:22]}  Qb4 {[%clk 0:02:20]} 13. Qe2 {[%clk 0:01:28]}  Be6 {[%clk 0:02:19]} 14. c5 {[%clk 0:00:54]}  dxc5 {[%clk 0:02:16]} 15. Qa6 {[%clk 0:00:54]}  Qb6 {[%clk 0:02:07]} 16. Qe2 {[%clk 0:00:49]}  Ne5 {[%clk 0:02:03]} 17. Nd2 {[%clk 0:00:42]}  Rd8 {[%clk 0:02:02]} 18. f4 {[%clk 0:00:39]}  Nd3 {[%clk 0:02:01]} 19. f5 {[%clk 0:00:39]}  Bc8 {[%clk 0:01:42]} 20. f6 {[%clk 0:00:03]}  Bxf6 {[%clk 0:01:41]} 21. Rxf6 {[%clk 0:00:03]}  exf6 {[%clk 0:01:42]} 22. b3 {[%clk 0:00:00]}  Qb4 {[%clk 0:01:39]} 0-1

[Event "November 21 Late 2023"]
[Site "https://www.chess.com"]
[Date "2023.11.21"]
[Round "6"]
[White "Sydoryka, Vladyslav"]
[Black "ciutadella"]
[Result "1-0"]
[Board "43"]
[TimeControl "180+1"]
[WhiteFideId "14145928"]
[WhiteElo "2271"]
[BlackElo "2534"]
[WhiteTeam "UKR"]
[WhiteClock "0:00:28"]
[BlackClock "0:00:05"]

1. c4 {[%clk 0:03:00]}  e6 {[%clk 0:02:58]} 2. g3 {[%clk 0:02:59]}  d5 {[%clk 0:02:58]} 3. Bg2 {[%clk 0:03:00]}  Nf6 {[%clk 0:02:58]} 4. Nf3 {[%clk 0:03:00]}  c5 {[%clk 0:02:54]} 5. cxd5 {[%clk 0:03:00]}  Nxd5 {[%clk 0:02:53]} 6. O-O {[%clk 0:03:00]}  Nc6 {[%clk 0:02:53]} 7. d4 {[%clk 0:03:00]}  Nf6 {[%clk 0:02:48]} 8. dxc5 {[%clk 0:02:54]}  Qxd1 {[%clk 0:02:44]} 9. Rxd1 {[%clk 0:02:55]}  Bxc5 {[%clk 0:02:43]} 10. Nbd2 {[%clk 0:02:42]}  Ke7 {[%clk 0:02:38]} 11. Nc4 {[%clk 0:02:40]}  Bd7 {[%clk 0:02:31]} 12. Bf4 {[%clk 0:02:26]}  Nd5 {[%clk 0:02:19]} 13. Nfe5 {[%clk 0:02:20]}  Nxe5 {[%clk 0:02:07]} 14. Nxe5 {[%clk 0:02:21]}  Bc6 {[%clk 0:01:51]} 15. Nxc6+ {[%clk 0:02:18]}  bxc6 {[%clk 0:01:52]} 16. Rac1 {[%clk 0:02:18]}  Nxf4 {[%clk 0:01:50]} 17. gxf4 {[%clk 0:02:10]}  Bb6 {[%clk 0:01:44]} 18. Rxc6 {[%clk 0:02:08]}  Rac8 {[%clk 0:01:43]} 19. Rxc8 {[%clk 0:02:05]}  Rxc8 {[%clk 0:01:44]} 20. Be4 {[%clk 0:02:05]}  Rc4 {[%clk 0:01:36]} 21. Bd3 {[%clk 0:01:36]}  Rxf4 {[%clk 0:01:34]} 22. e3 {[%clk 0:01:37]}  Rg4+ {[%clk 0:01:29]} 23. Kf1 {[%clk 0:01:37]}  h5 {[%clk 0:01:25]} 24. h3 {[%clk 0:01:36]}  Rb4 {[%clk 0:01:22]} 25. Rd2 {[%clk 0:01:33]}  g5 {[%clk 0:01:14]} 26. a3 {[%clk 0:01:30]}  Rh4 {[%clk 0:01:06]} 27. Kg2 {[%clk 0:01:29]}  g4 {[%clk 0:01:06]} 28. hxg4 {[%clk 0:01:30]}  Rxg4+ {[%clk 0:01:06]} 29. Kf3 {[%clk 0:01:18]}  Rg5 {[%clk 0:01:06]} 30. Rd1 {[%clk 0:01:12]}  h4 {[%clk 0:01:00]} 31. Rh1 {[%clk 0:01:09]}  Rh5 {[%clk 0:01:00]} 32. Kg4 {[%clk 0:01:06]}  Rh6 {[%clk 0:00:59]} 33. Kh3 {[%clk 0:01:03]}  Rf6 {[%clk 0:00:41]} 34. Rf1 {[%clk 0:00:51]}  Rh6 {[%clk 0:00:40]} 35. b4 {[%clk 0:00:47]}  Rh8 {[%clk 0:00:40]} 36. a4 {[%clk 0:00:47]}  f5 {[%clk 0:00:30]} 37. a5 {[%clk 0:00:46]}  Bc7 {[%clk 0:00:30]} 38. Rc1 {[%clk 0:00:46]}  Bd6 {[%clk 0:00:30]} 39. b5 {[%clk 0:00:46]}  Rb8 {[%clk 0:00:27]} 40. Be2 {[%clk 0:00:42]}  Bb4 {[%clk 0:00:26]} 41. Rc7+ {[%clk 0:00:42]}  Kd6 {[%clk 0:00:26]} 42. Rxa7 {[%clk 0:00:42]}  Be1 {[%clk 0:00:25]} 43. Kg2 {[%clk 0:00:38]}  Rg8+ {[%clk 0:00:24]} 44. Kf1 {[%clk 0:00:36]}  Bb4 {[%clk 0:00:18]} 45. Bf3 {[%clk 0:00:37]}  h3 {[%clk 0:00:18]} 46. b6 {[%clk 0:00:37]}  h2 {[%clk 0:00:19]} 47. b7 {[%clk 0:00:31]}  Rg1+ {[%clk 0:00:17]} 48. Ke2 {[%clk 0:00:32]}  Kc7 {[%clk 0:00:05]} 49. Ra8 {[%clk 0:00:28]} 1-0

[Event "November 21 Late 2023"]
[Site "https://www.chess.com"]
[Date "2023.11.21"]
[Round "6"]
[White "Silva Lucena, Cristian"]
[Black "Zhurbinsky, David"]
[Result "1-0"]
[Board "50"]
[TimeControl "180+1"]
[WhiteFideId "2232588"]
[BlackFideId "2072904"]
[WhiteElo "2248"]
[BlackElo "2629"]
[WhiteTeam "ESP"]
[BlackTeam "USA"]
[WhiteClock "0:01:57"]
[BlackClock "0:01:01"]

1. e4 {[%clk 0:03:00]}  e5 {[%clk 0:02:59]} 2. Nf3 {[%clk 0:03:01]}  Nc6 {[%clk 0:02:58]} 3. Bc4 {[%clk 0:03:01]}  Bc5 {[%clk 0:02:58]} 4. d4 {[%clk 0:03:02]}  Bxd4 {[%clk 0:02:56]} 5. Nxd4 {[%clk 0:03:02]}  Nxd4 {[%clk 0:02:57]} 6. Be3 {[%clk 0:03:02]}  Nc6 {[%clk 0:02:43]} 7. Qg4 {[%clk 0:03:01]}  Qf6 {[%clk 0:02:35]} 8. Nc3 {[%clk 0:03:02]}  d5 {[%clk 0:02:24]} 9. Qg3 {[%clk 0:03:02]}  dxc4 {[%clk 0:02:23]} 10. Nd5 {[%clk 0:03:03]}  Qg6 {[%clk 0:01:50]} 11. Nxc7+ {[%clk 0:03:02]}  Kd8 {[%clk 0:01:50]} 12. Nxa8 {[%clk 0:03:03]}  Qxg3 {[%clk 0:01:50]} 13. hxg3 {[%clk 0:03:04]}  Bd7 {[%clk 0:01:51]} 14. O-O-O {[%clk 0:03:01]}  Kc8 {[%clk 0:01:46]} 15. Bxa7 {[%clk 0:02:59]}  Be6 {[%clk 0:01:32]} 16. Be3 {[%clk 0:02:55]}  Nf6 {[%clk 0:01:29]} 17. Nb6+ {[%clk 0:02:54]}  Kc7 {[%clk 0:01:30]} 18. f3 {[%clk 0:02:55]}  Nd4 {[%clk 0:01:28]} 19. Bxd4 {[%clk 0:02:47]}  exd4 {[%clk 0:01:29]} 20. Nd5+ {[%clk 0:02:46]}  Nxd5 {[%clk 0:01:21]} 21. exd5 {[%clk 0:02:46]}  Bxd5 {[%clk 0:01:22]} 22. Rxd4 {[%clk 0:02:46]}  Be6 {[%clk 0:01:20]} 23. b3 {[%clk 0:02:43]}  b5 {[%clk 0:01:18]} 24. Kb2 {[%clk 0:02:41]}  h6 {[%clk 0:01:14]} 25. g4 {[%clk 0:02:39]}  Kc6 {[%clk 0:01:14]} 26. Rhd1 {[%clk 0:02:38]}  Ra8 {[%clk 0:01:12]} 27. a3 {[%clk 0:02:36]}  Kc7 {[%clk 0:01:04]} 28. Ra1 {[%clk 0:02:33]}  Kb6 {[%clk 0:01:00]} 29. a4 {[%clk 0:02:32]}  Kc5 {[%clk 0:01:00]} 30. Re4 {[%clk 0:02:21]}  bxa4 {[%clk 0:00:58]} 31. Rxa4 {[%clk 0:02:20]}  Rb8 {[%clk 0:00:56]} 32. Raxc4+ {[%clk 0:02:10]}  Bxc4 {[%clk 0:00:57]} 33. Rxc4+ {[%clk 0:02:10]}  Kd5 {[%clk 0:00:58]} 34. Rc7 {[%clk 0:02:09]}  Ke6 {[%clk 0:00:57]} 35. c4 {[%clk 0:02:08]}  g6 {[%clk 0:00:54]} 36. Kc3 {[%clk 0:02:07]}  f5 {[%clk 0:00:54]} 37. gxf5+ {[%clk 0:02:07]}  Kxf5 {[%clk 0:00:54]} 38. Rf7+ {[%clk 0:02:05]}  Ke6 {[%clk 0:00:53]} 39. Rh7 {[%clk 0:02:04]}  h5 {[%clk 0:00:53]} 40. b4 {[%clk 0:02:05]}  Ra8 {[%clk 0:00:52]} 41. b5 {[%clk 0:01:57]}  Kd6 {[%clk 0:00:49]} 42. Rg7 {[%clk 0:01:56]}  Kc5 {[%clk 0:00:46]} 43. Rc7+ {[%clk 0:01:57]}  Kd6 {[%clk 0:00:46]} 44. Rc6+ {[%clk 0:01:57]}  Ke5 {[%clk 0:00:47]} 45. Rxg6 {[%clk 0:01:58]}  h4 {[%clk 0:00:47]} 46. Kb4 {[%clk 0:01:56]}  Kd4 {[%clk 0:00:47]} 47. Rg4+ {[%clk 0:01:56]}  Kd3 {[%clk 0:00:47]} 48. b6 {[%clk 0:01:56]}  Ra1 {[%clk 0:00:47]} 49. c5 {[%clk 0:01:55]}  Rb1+ {[%clk 0:00:48]} 50. Ka5 {[%clk 0:01:55]}  h3 {[%clk 0:00:48]} 51. gxh3 {[%clk 0:01:54]}  Kc3 {[%clk 0:00:48]} 52. Ka6 {[%clk 0:01:52]}  Kd3 {[%clk 0:00:48]} 53. Kb7 {[%clk 0:01:52]}  Ke3 {[%clk 0:00:47]} 54. c6 {[%clk 0:01:52]}  Ra1 {[%clk 0:00:46]} 55. c7 {[%clk 0:01:53]}  Kf2 {[%clk 0:00:47]} 56. c8=Q {[%clk 0:01:53]}  Kf1 {[%clk 0:00:48]} 57. Qc4+ {[%clk 0:01:52]}  Kf2 {[%clk 0:00:48]} 58. Qd4+ {[%clk 0:01:53]}  Ke2 {[%clk 0:00:48]} 59. Qxa1 {[%clk 0:01:53]}  Ke3 {[%clk 0:00:48]} 60. Qd4+ {[%clk 0:01:53]}  Ke2 {[%clk 0:00:49]} 61. Qc3 {[%clk 0:01:52]}  Kf1 {[%clk 0:00:50]} 62. Qb2 {[%clk 0:01:52]}  Ke1 {[%clk 0:00:50]} 63. f4 {[%clk 0:01:52]}  Kf1 {[%clk 0:00:50]} 64. f5 {[%clk 0:01:52]}  Ke1 {[%clk 0:00:51]} 65. f6 {[%clk 0:01:53]}  Kd1 {[%clk 0:00:52]} 66. f7 {[%clk 0:01:54]}  Ke1 {[%clk 0:00:53]} 67. f8=Q {[%clk 0:01:54]}  Kd1 {[%clk 0:00:53]} 68. h4 {[%clk 0:01:53]}  Ke1 {[%clk 0:00:54]} 69. h5 {[%clk 0:01:54]}  Kd1 {[%clk 0:00:55]} 70. h6 {[%clk 0:01:54]}  Ke1 {[%clk 0:00:56]} 71. h7 {[%clk 0:01:55]}  Kd1 {[%clk 0:00:57]} 72. h8=Q {[%clk 0:01:56]}  Ke1 {[%clk 0:00:58]} 73. Kc6 {[%clk 0:01:56]}  Kd1 {[%clk 0:00:59]} 74. b7 {[%clk 0:01:56]}  Ke1 {[%clk 0:01:00]} 75. b8=Q {[%clk 0:01:57]}  Kd1 {[%clk 0:01:01]} 76. Q8b3+ {[%clk 0:01:57]}  Ke1 {[%clk 0:01:02]} 77. Qe7+ {[%clk 0:01:56]}  Kf1 {[%clk 0:01:01]} 78. Qhf6# {[%clk 0:01:57]} 1-0

[Event "November 21 Late 2023"]
[Site "https://www.chess.com"]
[Date "2023.11.21"]
[Round "6"]
[White "Nikologorsky, Matfei"]
[Black "Feng, Eric"]
[Result "1-0"]
[Board "52"]
[TimeControl "180+1"]
[WhiteFideId "24102474"]
[BlackFideId "30952590"]
[WhiteElo "2153"]
[BlackElo "1785"]
[WhiteTeam "FID"]
[BlackTeam "USA"]
[WhiteClock "0:00:11"]
[BlackClock "0:00:00"]

1. e4 {[%clk 0:03:00]}  c6 {[%clk 0:02:56]} 2. d4 {[%clk 0:03:00]}  d5 {[%clk 0:02:57]} 3. Nc3 {[%clk 0:03:00]}  dxe4 {[%clk 0:02:57]} 4. Nxe4 {[%clk 0:03:01]}  Bf5 {[%clk 0:02:58]} 5. Ng3 {[%clk 0:03:01]}  Bg6 {[%clk 0:02:58]} 6. Bc4 {[%clk 0:03:01]}  e6 {[%clk 0:02:59]} 7. N1e2 {[%clk 0:03:01]}  Bd6 {[%clk 0:02:58]} 8. h4 {[%clk 0:02:57]}  h6 {[%clk 0:02:57]} 9. Nf4 {[%clk 0:02:56]}  Bxf4 {[%clk 0:02:55]} 10. Bxf4 {[%clk 0:02:57]}  Nf6 {[%clk 0:02:55]} 11. Be2 {[%clk 0:02:53]}  Nbd7 {[%clk 0:02:54]} 12. c4 {[%clk 0:02:48]}  O-O {[%clk 0:02:43]} 13. Qb3 {[%clk 0:02:42]}  b6 {[%clk 0:02:41]} 14. Bf3 {[%clk 0:02:35]}  Rc8 {[%clk 0:02:40]} 15. O-O {[%clk 0:02:26]}  c5 {[%clk 0:02:37]} 16. Rad1 {[%clk 0:01:55]}  Qe7 {[%clk 0:02:14]} 17. d5 {[%clk 0:01:44]}  e5 {[%clk 0:02:12]} 18. Rfe1 {[%clk 0:01:41]}  Qd6 {[%clk 0:02:03]} 19. Bc1 {[%clk 0:01:40]}  Ne8 {[%clk 0:02:02]} 20. Qc3 {[%clk 0:01:16]}  f5 {[%clk 0:02:00]} 21. b3 {[%clk 0:01:14]}  e4 {[%clk 0:01:44]} 22. Bh5 {[%clk 0:01:07]}  Bh7 {[%clk 0:01:40]} 23. Bxe8 {[%clk 0:00:51]}  Rcxe8 {[%clk 0:01:41]} 24. Bb2 {[%clk 0:00:51]}  Nf6 {[%clk 0:01:33]} 25. a3 {[%clk 0:00:33]}  Re7 {[%clk 0:01:32]} 26. b4 {[%clk 0:00:32]}  Nd7 {[%clk 0:01:30]} 27. Nh5 {[%clk 0:00:30]}  Rff7 {[%clk 0:00:59]} 28. g3 {[%clk 0:00:24]}  Ne5 {[%clk 0:00:53]} 29. Kg2 {[%clk 0:00:24]}  Nf3 {[%clk 0:00:53]} 30. Re3 {[%clk 0:00:20]}  Nd4 {[%clk 0:00:53]} 31. Rxd4 {[%clk 0:00:19]}  cxd4 {[%clk 0:00:53]} 32. Qxd4 {[%clk 0:00:20]}  Bg6 {[%clk 0:00:41]} 33. Nf4 {[%clk 0:00:20]}  Bh7 {[%clk 0:00:36]} 34. c5 {[%clk 0:00:21]}  bxc5 {[%clk 0:00:35]} 35. bxc5 {[%clk 0:00:21]}  Qf6 {[%clk 0:00:28]} 36. Qd2 {[%clk 0:00:14]}  Qa6 {[%clk 0:00:28]} 37. d6 {[%clk 0:00:14]}  Rd7 {[%clk 0:00:28]} 38. Qd5 {[%clk 0:00:14]}  Qb5 {[%clk 0:00:20]} 39. Rb3 {[%clk 0:00:13]}  Qa5 {[%clk 0:00:16]} 40. Bc3 {[%clk 0:00:13]}  Qd8 {[%clk 0:00:16]} 41. Ne6 {[%clk 0:00:12]}  Qc8 {[%clk 0:00:07]} 42. c6 {[%clk 0:00:12]}  Kh8 {[%clk 0:00:04]} 43. cxd7 {[%clk 0:00:12]}  Rxd7 {[%clk 0:00:00]} 44. Bxg7+ {[%clk 0:00:11]} 1-0

[Event "November 21 Late 2023"]
[Site "https://www.chess.com"]
[Date "2023.11.21"]
[Round "6"]
[White "Banzea, Alexandru-Bogdan"]
[Black "FuenfgegenWilly"]
[Result "1-0"]
[Board "53"]
[TimeControl "180+1"]
[WhiteFideId "1232622"]
[WhiteElo "2294"]
[BlackElo "2487"]
[WhiteTeam "ROU"]
[WhiteClock "0:00:09"]
[BlackClock "0:00:21"]

1. d4 {[%clk 0:03:00]}  d5 {[%clk 0:02:59]} 2. Nc3 {[%clk 0:02:44]}  Nf6 {[%clk 0:02:50]} 3. Bf4 {[%clk 0:02:28]}  c6 {[%clk 0:02:48]} 4. e3 {[%clk 0:02:20]}  Bf5 {[%clk 0:02:46]} 5. f3 {[%clk 0:02:21]}  h5 {[%clk 0:02:45]} 6. Bd3 {[%clk 0:02:20]}  e6 {[%clk 0:02:39]} 7. Nge2 {[%clk 0:02:18]}  Nbd7 {[%clk 0:02:35]} 8. Bxf5 {[%clk 0:01:38]}  exf5 {[%clk 0:02:36]} 9. Qd3 {[%clk 0:01:38]}  g6 {[%clk 0:02:30]} 10. O-O-O {[%clk 0:01:18]}  Be7 {[%clk 0:02:19]} 11. e4 {[%clk 0:01:16]}  fxe4 {[%clk 0:02:19]} 12. fxe4 {[%clk 0:01:17]}  dxe4 {[%clk 0:02:18]} 13. Nxe4 {[%clk 0:01:18]}  Nxe4 {[%clk 0:02:15]} 14. Qxe4 {[%clk 0:01:11]}  Nf6 {[%clk 0:02:16]} 15. Qd3 {[%clk 0:01:05]}  Qa5 {[%clk 0:02:09]} 16. Nc3 {[%clk 0:00:54]}  O-O-O {[%clk 0:02:08]} 17. Rhe1 {[%clk 0:00:38]}  Bb4 {[%clk 0:02:07]} 18. Be5 {[%clk 0:00:36]}  Be7 {[%clk 0:01:14]} 19. Qh3+ {[%clk 0:00:32]}  Rd7 {[%clk 0:01:07]} 20. Bxf6 {[%clk 0:00:25]}  Bxf6 {[%clk 0:01:08]} 21. Ne4 {[%clk 0:00:25]}  Rd8 {[%clk 0:00:51]} 22. Nc5 {[%clk 0:00:21]}  Qxa2 {[%clk 0:00:43]} 23. Rd3 {[%clk 0:00:13]}  Qa1+ {[%clk 0:00:35]} 24. Kd2 {[%clk 0:00:13]}  Bg5+ {[%clk 0:00:35]} 25. Ke2 {[%clk 0:00:09]}  Re8+ {[%clk 0:00:34]} 26. Kf3 {[%clk 0:00:09]}  Re3+ {[%clk 0:00:21]} 27. Rdxe3 {[%clk 0:00:09]} 1-0